[Event "*** Titled Tuesday Blitz"]
[Site "Chess.com"]
[Date "2021.04.06"]
[Round "6"]
[White "prachiti01"]
[Black "Oglob71"]
[Result "0-1"]
[WhiteElo "2159"]
[BlackElo "2384"]
[TimeControl "180+1"]
[EndTime "11:10:08 PDT"]
[Termination "Oglob71 won by checkmate"]

1. e4 {[%clk 0:03:00.9]} 1... c5 {[%clk 0:02:59.3]} 2. c3 {[%clk 0:03:00.1]}
2... Nf6 {[%clk 0:02:58.5]} 3. e5 {[%clk 0:02:59.8]} 3... Nd5 {[%clk 0:02:58.4]}
4. Nf3 {[%clk 0:03:00.1]} 4... e6 {[%clk 0:02:57.7]} 5. Bc4 {[%clk 0:02:58.7]}
5... Nb6 {[%clk 0:02:57]} 6. Bb3 {[%clk 0:02:57.8]} 6... c4 {[%clk 0:02:57.3]}
7. Bc2 {[%clk 0:02:58]} 7... Nc6 {[%clk 0:02:57.7]} 8. O-O {[%clk 0:02:57.4]}
8... Qc7 {[%clk 0:02:57.8]} 9. Re1 {[%clk 0:02:55.2]} 9... d6 {[%clk 0:02:56.8]}
10. exd6 {[%clk 0:02:54.2]} 10... Bxd6 {[%clk 0:02:57.3]} 11. b3 {[%clk
0:02:53.9]} 11... O-O {[%clk 0:02:53.2]} 12. Na3 {[%clk 0:02:53.8]} 12... cxb3
{[%clk 0:02:49.6]} 13. axb3 {[%clk 0:02:52.8]} 13... Nd5 {[%clk 0:02:50]} 14.
Nb5 {[%clk 0:02:50.7]} 14... Qd8 {[%clk 0:02:50.4]} 15. Nxd6 {[%clk 0:02:46.6]}
15... Qxd6 {[%clk 0:02:50.9]} 16. Ba3 {[%clk 0:02:45.4]} 16... Qc7 {[%clk
0:02:43.8]} 17. Bxf8 {[%clk 0:02:44.1]} 17... Kxf8 {[%clk 0:02:44.2]} 18. Qe2
{[%clk 0:02:41.8]} 18... h6 {[%clk 0:02:43.6]} 19. g3 {[%clk 0:02:36.2]} 19...
b6 {[%clk 0:02:43]} 20. Be4 {[%clk 0:02:33.5]} 20... Nf6 {[%clk 0:02:42.6]} 21.
Bd3 {[%clk 0:02:20.3]} 21... Bb7 {[%clk 0:02:42.2]} 22. Ba6 {[%clk 0:02:19.9]}
22... Rd8 {[%clk 0:02:33.8]} 23. Bxb7 {[%clk 0:02:18]} 23... Qxb7 {[%clk
0:02:34.1]} 24. d4 {[%clk 0:02:16.9]} 24... Na5 {[%clk 0:02:31.5]} 25. Rab1
{[%clk 0:02:10.2]} 25... Qc7 {[%clk 0:02:30.2]} 26. Rec1 {[%clk 0:02:00.7]}
26... Nd5 {[%clk 0:02:26.1]} 27. c4 {[%clk 0:01:45.8]} 27... Nf6 {[%clk
0:02:24.5]} 28. c5 {[%clk 0:01:37.5]} 28... Nd5 {[%clk 0:02:21.1]} 29. b4 {[%clk
0:01:34]} 29... Nc6 {[%clk 0:02:15.6]} 30. Qb5 {[%clk 0:01:15.8]} 30... Nce7
{[%clk 0:02:09.3]} 31. cxb6 {[%clk 0:00:55.7]} 31... Qxb6 {[%clk 0:02:08.7]} 32.
Qxb6 {[%clk 0:00:56]} 32... axb6 {[%clk 0:02:08.9]} 33. b5 {[%clk 0:00:56]}
33... Nf5 {[%clk 0:02:05.7]} 34. Kg2 {[%clk 0:00:54.1]} 34... g5 {[%clk
0:01:57.9]} 35. h3 {[%clk 0:00:52.8]} 35... Nde7 {[%clk 0:01:51.7]} 36. Rd1
{[%clk 0:00:46.9]} 36... Rd5 {[%clk 0:01:46]} 37. g4 {[%clk 0:00:45.9]} 37...
Nd6 {[%clk 0:01:45.8]} 38. Rdc1 {[%clk 0:00:40.2]} 38... Nxb5 {[%clk 0:01:44.9]}
39. Rb4 {[%clk 0:00:32.6]} 39... Kg7 {[%clk 0:01:36.3]} 40. Rcb1 {[%clk
0:00:30.9]} 40... Nc3 {[%clk 0:01:34.4]} 41. R1b3 {[%clk 0:00:26.9]} 41... Ne2
{[%clk 0:01:32.3]} 42. Rxb6 {[%clk 0:00:25.2]} 42... Nxd4 {[%clk 0:01:26.4]} 43.
Nxd4 {[%clk 0:00:24.1]} 43... Rxd4 {[%clk 0:01:26.3]} 44. R3b4 {[%clk
0:00:20.7]} 44... Rd3 {[%clk 0:01:23.2]} 45. Rb3 {[%clk 0:00:20.4]} 45... Rd1
{[%clk 0:01:22.1]} 46. Rb1 {[%clk 0:00:19.9]} 46... Rd2 {[%clk 0:01:21.6]} 47.
R6b2 {[%clk 0:00:19.7]} 47... Rd3 {[%clk 0:01:21.4]} 48. Rb3 {[%clk 0:00:19.5]}
48... Rd4 {[%clk 0:01:21.5]} 49. Rb4 {[%clk 0:00:18.5]} 49... Rd5 {[%clk
0:01:21.4]} 50. Rb7 {[%clk 0:00:18.3]} 50... Ng6 {[%clk 0:01:20.2]} 51. R1b3
{[%clk 0:00:16.7]} 51... Nf4+ {[%clk 0:01:19.8]} 52. Kg3 {[%clk 0:00:16.9]}
52... Rd1 {[%clk 0:01:18.8]} 53. Ra7 {[%clk 0:00:15.8]} 53... Rg1+ {[%clk
0:01:18.3]} 54. Kf3 {[%clk 0:00:15.5]} 54... Rh1 {[%clk 0:01:17.9]} 55. Rbb7
{[%clk 0:00:14.7]} 55... Rxh3+ {[%clk 0:01:17.8]} 56. Ke4 {[%clk 0:00:14.7]}
56... Nd5 {[%clk 0:01:12.6]} 57. Rxf7+ {[%clk 0:00:14]} 57... Kg8 {[%clk
0:01:10.2]} 58. Rfb7 {[%clk 0:00:12.1]} 58... Nf6+ {[%clk 0:00:54.4]} 59. Ke5
{[%clk 0:00:11.6]} 59... Nxg4+ {[%clk 0:00:54.3]} 60. Kxe6 {[%clk 0:00:11.7]}
60... Rf3 {[%clk 0:00:54]} 61. Rg7+ {[%clk 0:00:07.4]} 61... Kf8 {[%clk
0:00:53.9]} 62. Rgf7+ {[%clk 0:00:04.5]} 62... Rxf7 {[%clk 0:00:53.5]} 63. Rxf7+
{[%clk 0:00:05.4]} 63... Kg8 {[%clk 0:00:54]} 64. Rf5 {[%clk 0:00:03.8]} 64...
Kg7 {[%clk 0:00:53.3]} 65. Ke7 {[%clk 0:00:03.4]} 65... Kg6 {[%clk 0:00:53.1]}
66. Rf7 {[%clk 0:00:03.3]} 66... h5 {[%clk 0:00:52.2]} 67. Rf8 {[%clk
0:00:03.2]} 67... h4 {[%clk 0:00:51.7]} 68. Ke6 {[%clk 0:00:03.1]} 68... h3
{[%clk 0:00:49]} 69. Rf3 {[%clk 0:00:03]} 69... h2 {[%clk 0:00:47.1]} 70. Rh3
{[%clk 0:00:03.4]} 70... Nxf2 {[%clk 0:00:46.1]} 71. Rxh2 {[%clk 0:00:03.3]}
71... Nd3 {[%clk 0:00:46.7]} 72. Rg2 {[%clk 0:00:03.1]} 72... Nf4+ {[%clk
0:00:47]} 73. Ke5 {[%clk 0:00:03.2]} 73... Nxg2 {[%clk 0:00:47.5]} 74. Ke4
{[%clk 0:00:03.7]} 74... Nh4 {[%clk 0:00:48]} 75. Ke3 {[%clk 0:00:02.9]} 75...
Kf5 {[%clk 0:00:48.5]} 76. Kf2 {[%clk 0:00:03.8]} 76... Kg4 {[%clk 0:00:49]} 77.
Kg1 {[%clk 0:00:03.6]} 77... Nf5 {[%clk 0:00:49.5]} 78. Kg2 {[%clk 0:00:03.6]}
78... Nd4 {[%clk 0:00:49.6]} 79. Kg1 {[%clk 0:00:03.9]} 79... Kf3 {[%clk
0:00:49.9]} 80. Kf1 {[%clk 0:00:03.6]} 80... g4 {[%clk 0:00:50.3]} 81. Kg1
{[%clk 0:00:04.5]} 81... g3 {[%clk 0:00:48.6]} 82. Kf1 {[%clk 0:00:05.4]} 82...
g2+ {[%clk 0:00:48.7]} 83. Kg1 {[%clk 0:00:06.3]} 83... Ne2+ {[%clk 0:00:48.6]}
84. Kh2 {[%clk 0:00:06.6]} 84... g1=Q+ {[%clk 0:00:48.5]} 85. Kh3 {[%clk
0:00:07.5]} 85... Qg3# {[%clk 0:00:49.1]} 0-1

[Event "*** Titled Tuesday Blitz"]
[Site "Chess.com"]
[Date "2021.04.06"]
[Round "6"]
[White "Angry_Twin"]
[Black "FairChess_on_YouTube"]
[Result "1/2-1/2"]
[WhiteElo "2889"]
[BlackElo "3011"]
[TimeControl "180+1"]
[EndTime "11:10:09 PDT"]
[Termination "Game drawn by repetition"]

1. e4 {[%clk 0:03:00.9]} 1... c5 {[%clk 0:02:59.6]} 2. Nf3 {[%clk 0:03:00.9]}
2... d6 {[%clk 0:03:00]} 3. Bb5+ {[%clk 0:03:00.7]} 3... Nd7 {[%clk 0:02:59.5]}
4. O-O {[%clk 0:03:00.1]} 4... a6 {[%clk 0:02:58.9]} 5. Bd3 {[%clk 0:03:00.4]}
5... Ngf6 {[%clk 0:02:54.9]} 6. Re1 {[%clk 0:03:00.2]} 6... g6 {[%clk
0:02:37.9]} 7. c3 {[%clk 0:02:56.5]} 7... Bg7 {[%clk 0:02:37.9]} 8. Bc2 {[%clk
0:02:56.7]} 8... O-O {[%clk 0:02:37]} 9. d4 {[%clk 0:02:57]} 9... e5 {[%clk
0:02:33.6]} 10. a4 {[%clk 0:02:45.4]} 10... b6 {[%clk 0:02:25.3]} 11. dxe5
{[%clk 0:02:41.1]} 11... Nxe5 {[%clk 0:02:20.9]} 12. Nxe5 {[%clk 0:02:20]} 12...
dxe5 {[%clk 0:02:21.8]} 13. Qf3 {[%clk 0:02:19.6]} 13... Bg4 {[%clk 0:02:06]}
14. Qg3 {[%clk 0:02:17.5]} 14... Qc7 {[%clk 0:02:06.2]} 15. Bg5 {[%clk
0:02:16.2]} 15... Be6 {[%clk 0:02:06]} 16. Nd2 {[%clk 0:01:58.6]} 16... Rfd8
{[%clk 0:01:59.3]} 17. Nf1 {[%clk 0:01:45]} 17... Rd7 {[%clk 0:01:53.5]} 18. Ne3
{[%clk 0:01:41.3]} 18... Nh5 {[%clk 0:01:51.5]} 19. Qf3 {[%clk 0:01:37.8]} 19...
h6 {[%clk 0:01:47.4]} 20. Bh4 {[%clk 0:01:37.8]} 20... Nf4 {[%clk 0:01:47.4]}
21. c4 {[%clk 0:01:31.6]} 21... Rd4 {[%clk 0:01:42.2]} 22. b3 {[%clk 0:01:27.2]}
22... Qd7 {[%clk 0:01:27.6]} 23. Bg3 {[%clk 0:01:23.3]} 23... Rd8 {[%clk
0:01:17.5]} 24. Nd5 {[%clk 0:00:54.9]} 24... b5 {[%clk 0:01:16.2]} 25. axb5
{[%clk 0:00:29.7]} 25... axb5 {[%clk 0:01:15.9]} 26. Bxf4 {[%clk 0:00:20.6]}
26... exf4 {[%clk 0:01:14.9]} 27. Rab1 {[%clk 0:00:17.9]} 27... Rd2 {[%clk
0:01:04.3]} 28. Bd1 {[%clk 0:00:16.4]} 28... Bd4 {[%clk 0:01:00.7]} 29. Rf1
{[%clk 0:00:15.7]} 29... g5 {[%clk 0:00:58.9]} 30. Qh5 {[%clk 0:00:15.7]} 30...
Kg7 {[%clk 0:00:57.7]} 31. h3 {[%clk 0:00:12.1]} 31... Rb8 {[%clk 0:00:47.3]}
32. Bg4 {[%clk 0:00:11.7]} 32... bxc4 {[%clk 0:00:46.3]} 33. bxc4 {[%clk
0:00:11.8]} 33... Bxf2+ {[%clk 0:00:39.8]} 34. Kh1 {[%clk 0:00:11.8]} 34... Bxg4
{[%clk 0:00:36.5]} 35. hxg4 {[%clk 0:00:09.6]} 35... Rbb2 {[%clk 0:00:18.4]} 36.
Rxb2 {[%clk 0:00:07.3]} 36... Rxb2 {[%clk 0:00:19.3]} 37. Nxf4 {[%clk
0:00:07.8]} 37... Qd2 {[%clk 0:00:10.9]} 38. Nh3 {[%clk 0:00:07.8]} 38... Qe3
{[%clk 0:00:07.3]} 39. Nxf2 {[%clk 0:00:04.9]} 39... Rxf2 {[%clk 0:00:08.2]} 40.
Rxf2 {[%clk 0:00:03.1]} 40... Qxf2 {[%clk 0:00:09.1]} 41. Qh2 {[%clk 0:00:01.8]}
41... Qf1+ {[%clk 0:00:04.7]} 42. Qg1 {[%clk 0:00:02.4]} 42... Qxc4 {[%clk
0:00:05.6]} 43. Qa1+ {[%clk 0:00:02.2]} 43... Qd4 {[%clk 0:00:05.8]} 44. Qe1
{[%clk 0:00:02.8]} 44... c4 {[%clk 0:00:05.5]} 45. e5 {[%clk 0:00:03.1]} 45...
c3 {[%clk 0:00:05.7]} 46. e6 {[%clk 0:00:03.7]} 46... fxe6 {[%clk 0:00:05.7]}
47. Qxe6 {[%clk 0:00:04.6]} 47... Qf6 {[%clk 0:00:04.9]} 48. Qd7+ {[%clk
0:00:05]} 48... Qf7 {[%clk 0:00:04.4]} 49. Qd4+ {[%clk 0:00:05.2]} 49... Qf6
{[%clk 0:00:05]} 50. Qd7+ {[%clk 0:00:05.9]} 50... Kf8 {[%clk 0:00:05.6]} 51.
Qc8+ {[%clk 0:00:06.4]} 51... Ke7 {[%clk 0:00:05.4]} 52. Qc7+ {[%clk 0:00:06.9]}
52... Ke6 {[%clk 0:00:05.6]} 53. Qc6+ {[%clk 0:00:07.4]} 53... Kf7 {[%clk
0:00:05.8]} 54. Qd7+ {[%clk 0:00:07.5]} 54... Kg8 {[%clk 0:00:06.4]} 55. Qc8+
{[%clk 0:00:07.2]} 55... Kh7 {[%clk 0:00:06.3]} 56. Qd7+ {[%clk 0:00:06.9]}
56... Qg7 {[%clk 0:00:06.7]} 57. Qd3+ {[%clk 0:00:06.8]} 57... Kg8 {[%clk
0:00:06.8]} 58. Qd8+ {[%clk 0:00:07.2]} 58... Kf7 {[%clk 0:00:07.1]} 59. Qd7+
{[%clk 0:00:07.2]} 59... Kf8 {[%clk 0:00:07.3]} 60. Qd8+ {[%clk 0:00:07.3]}
60... Kf7 {[%clk 0:00:07.9]} 61. Qd7+ {[%clk 0:00:06.2]} 61... Kg8 {[%clk
0:00:08.5]} 62. Qc8+ {[%clk 0:00:05.6]} 62... Kh7 {[%clk 0:00:07.8]} 63. Qf5+
{[%clk 0:00:05.9]} 63... Qg6 {[%clk 0:00:08.1]} 64. Qd7+ {[%clk 0:00:06.1]}
64... Kg8 {[%clk 0:00:08]} 65. Qc8+ {[%clk 0:00:06]} 65... Kf7 {[%clk
0:00:08.4]} 66. Qxc3 {[%clk 0:00:06.2]} 66... Qe6 {[%clk 0:00:08.5]} 67. Qf3+
{[%clk 0:00:05.9]} 67... Qf6 {[%clk 0:00:08.6]} 68. Qd5+ {[%clk 0:00:06]} 68...
Qe6 {[%clk 0:00:08.6]} 69. Qf3+ {[%clk 0:00:05.8]} 69... Ke7 {[%clk 0:00:09.1]}
70. Kh2 {[%clk 0:00:06.2]} 70... Qe5+ {[%clk 0:00:09.3]} 71. Kh3 {[%clk
0:00:06.6]} 71... Ke6 {[%clk 0:00:08.8]} 72. Qc6+ {[%clk 0:00:06.1]} 72... Qd6
{[%clk 0:00:08.9]} 73. Qc4+ {[%clk 0:00:06.1]} 73... Qd5 {[%clk 0:00:07.9]} 74.
Qe2+ {[%clk 0:00:06.6]} 74... Qe5 {[%clk 0:00:07.6]} 75. Qc4+ {[%clk 0:00:06.7]}
75... Kf6 {[%clk 0:00:08.1]} 76. Qc6+ {[%clk 0:00:07.1]} 76... Qe6 {[%clk
0:00:08.6]} 77. Qf3+ {[%clk 0:00:07.6]} 77... Kg7 {[%clk 0:00:08.5]} 78. Qc3+
{[%clk 0:00:07.8]} 78... Kf7 {[%clk 0:00:08.6]} 79. Qc7+ {[%clk 0:00:07.9]}
79... Kg6 {[%clk 0:00:08.4]} 80. Qc2+ {[%clk 0:00:08]} 80... Kg7 {[%clk
0:00:08.4]} 81. Qc3+ {[%clk 0:00:08.4]} 81... Kg6 {[%clk 0:00:08.6]} 82. Qc2+
{[%clk 0:00:08.3]} 82... Kg7 {[%clk 0:00:09.1]} 83. Qc3+ {[%clk 0:00:08.2]}
1/2-1/2

[Event "*** Titled Tuesday Blitz"]
[Site "Chess.com"]
[Date "2021.04.06"]
[Round "6"]
[White "volkanyirik"]
[Black "chescomhuynya"]
[Result "1/2-1/2"]
[WhiteElo "2433"]
[BlackElo "2570"]
[TimeControl "180+1"]
[EndTime "11:10:11 PDT"]
[Termination "Game drawn - insufficient material"]

1. e4 {[%clk 0:03:00.9]} 1... d5 {[%clk 0:02:57.2]} 2. Nc3 {[%clk 0:03:01.8]}
2... dxe4 {[%clk 0:02:51.3]} 3. f3 {[%clk 0:03:01.3]} 3... exf3 {[%clk
0:02:51.4]} 4. Nxf3 {[%clk 0:03:01.4]} 4... Nf6 {[%clk 0:02:52.1]} 5. d4 {[%clk
0:03:01.6]} 5... g6 {[%clk 0:02:52.6]} 6. Bc4 {[%clk 0:03:01.4]} 6... Bg7 {[%clk
0:02:53.1]} 7. h3 {[%clk 0:02:55.2]} 7... O-O {[%clk 0:02:53.1]} 8. Be3 {[%clk
0:02:53.9]} 8... Nbd7 {[%clk 0:02:42.3]} 9. Qd2 {[%clk 0:02:52.3]} 9... Nb6
{[%clk 0:02:41.5]} 10. Bb3 {[%clk 0:02:52.6]} 10... Nfd5 {[%clk 0:02:40.9]} 11.
Bh6 {[%clk 0:02:51.8]} 11... Nxc3 {[%clk 0:02:40.5]} 12. bxc3 {[%clk 0:02:52.7]}
12... a5 {[%clk 0:02:36.9]} 13. a4 {[%clk 0:02:51.9]} 13... c5 {[%clk
0:02:27.3]} 14. dxc5 {[%clk 0:02:46.5]} 14... Qxd2+ {[%clk 0:02:25.8]} 15. Bxd2
{[%clk 0:02:47.4]} 15... Nd7 {[%clk 0:02:25]} 16. c6 {[%clk 0:02:44.8]} 16...
bxc6 {[%clk 0:02:24.3]} 17. O-O {[%clk 0:02:45.5]} 17... Nc5 {[%clk 0:02:22.3]}
18. Rae1 {[%clk 0:02:35.8]} 18... e6 {[%clk 0:02:18.2]} 19. Ne5 {[%clk
0:02:28.7]} 19... Ba6 {[%clk 0:01:57.3]} 20. Rf2 {[%clk 0:02:24.9]} 20... Nxb3
{[%clk 0:01:46.4]} 21. cxb3 {[%clk 0:02:24.7]} 21... Rab8 {[%clk 0:01:46.6]} 22.
Nd7 {[%clk 0:02:24.8]} 22... Rxb3 {[%clk 0:01:39.1]} 23. Nxf8 {[%clk 0:02:24.7]}
23... Bxf8 {[%clk 0:01:38.4]} 24. Rd1 {[%clk 0:02:08.1]} 24... Bc5 {[%clk
0:01:34.5]} 25. Bh6 {[%clk 0:02:08]} 25... Rb8 {[%clk 0:01:26.7]} 26. g3 {[%clk
0:02:02]} 26... Bc4 {[%clk 0:01:22]} 27. Kg2 {[%clk 0:02:00.2]} 27... Bd5+
{[%clk 0:01:21.8]} 28. Kf1 {[%clk 0:02:00.2]} 28... Bxf2 {[%clk 0:01:04.6]} 29.
Kxf2 {[%clk 0:02:01.1]} 29... c5 {[%clk 0:00:57.1]} 30. c4 {[%clk 0:01:58.2]}
30... Bxc4 {[%clk 0:00:57.1]} 31. Rc1 {[%clk 0:01:58.3]} 31... Rb4 {[%clk
0:00:40.2]} 32. Be3 {[%clk 0:01:39.9]} 32... Rxa4 {[%clk 0:00:38.2]} 33. Bxc5
{[%clk 0:01:40]} 33... Ra2+ {[%clk 0:00:30.1]} 34. Ke3 {[%clk 0:01:39.5]} 34...
Bd5 {[%clk 0:00:26.4]} 35. Bd4 {[%clk 0:01:37.6]} 35... Kf8 {[%clk 0:00:24.6]}
36. Bf6 {[%clk 0:01:31.7]} 36... Ke8 {[%clk 0:00:25]} 37. Rc7 {[%clk 0:01:28.4]}
37... a4 {[%clk 0:00:20.1]} 38. Re7+ {[%clk 0:01:18.6]} 38... Kd8 {[%clk
0:00:20.3]} 39. Rxf7+ {[%clk 0:01:17.6]} 39... Kc8 {[%clk 0:00:20.7]} 40. Rxh7
{[%clk 0:01:17.6]} 40... a3 {[%clk 0:00:20.1]} 41. Ra7 {[%clk 0:01:17.3]} 41...
Rg2 {[%clk 0:00:18.2]} 42. Kf4 {[%clk 0:01:15.9]} 42... a2 {[%clk 0:00:18.3]}
43. g4 {[%clk 0:01:11.4]} 43... Rg1 {[%clk 0:00:18.2]} 44. Kg5 {[%clk
0:01:11.7]} 44... Be4 {[%clk 0:00:18]} 45. Ra4 {[%clk 0:01:07.6]} 45... Bb1
{[%clk 0:00:17.7]} 46. Ra6 {[%clk 0:01:01.3]} 46... Kd7 {[%clk 0:00:17.9]} 47.
Ra7+ {[%clk 0:01:01.2]} 47... Kd6 {[%clk 0:00:18.1]} 48. Ra6+ {[%clk 0:01:00.6]}
48... Kd5 {[%clk 0:00:18.6]} 49. Ra5+ {[%clk 0:01:00.9]} 49... Kc4 {[%clk
0:00:19.1]} 50. Ra6 {[%clk 0:01:00]} 50... Rf1 {[%clk 0:00:19.6]} 51. Bh8 {[%clk
0:00:56.4]} 51... Re1 {[%clk 0:00:18]} 52. h4 {[%clk 0:00:52.8]} 52... e5 {[%clk
0:00:18.1]} 53. Ra5 {[%clk 0:00:51]} 53... Kb4 {[%clk 0:00:17.7]} 54. Ra7 {[%clk
0:00:46.7]} 54... Kb3 {[%clk 0:00:16.2]} 55. Rb7+ {[%clk 0:00:31.7]} 55... Kc2
{[%clk 0:00:16.2]} 56. Rc7+ {[%clk 0:00:31.1]} 56... Kd3 {[%clk 0:00:16.2]} 57.
Rd7+ {[%clk 0:00:29.9]} 57... Ke4 {[%clk 0:00:15.6]} 58. Ra7 {[%clk 0:00:19.7]}
58... Kf3 {[%clk 0:00:14.9]} 59. h5 {[%clk 0:00:18.1]} 59... gxh5 {[%clk
0:00:15.2]} 60. gxh5 {[%clk 0:00:19]} 60... Rg1+ {[%clk 0:00:15.7]} 61. Kh6
{[%clk 0:00:19.1]} 61... e4 {[%clk 0:00:15.9]} 62. Rf7+ {[%clk 0:00:15.8]} 62...
Ke2 {[%clk 0:00:15.9]} 63. Re7 {[%clk 0:00:15.7]} 63... e3 {[%clk 0:00:15.7]}
64. Bd4 {[%clk 0:00:16.2]} 64... Rg3 {[%clk 0:00:15.8]} 65. Re8 {[%clk
0:00:12.2]} 65... Kd2 {[%clk 0:00:15.4]} 66. Rd8 {[%clk 0:00:10.9]} 66... Bd3
{[%clk 0:00:14.5]} 67. Bh8 {[%clk 0:00:08.8]} 67... e2 {[%clk 0:00:13.3]} 68.
Rc8 {[%clk 0:00:08.6]} 68... e1=Q {[%clk 0:00:13.1]} 69. Bc3+ {[%clk 0:00:08.5]}
69... Ke2 {[%clk 0:00:13.6]} 70. Re8+ {[%clk 0:00:07.6]} 70... Be4 {[%clk
0:00:05.6]} 71. Rxe4+ {[%clk 0:00:06.5]} 71... Kd3 {[%clk 0:00:05.1]} 72. Rxe1
{[%clk 0:00:04.5]} 72... Kxc3 {[%clk 0:00:05.7]} 73. Kh7 {[%clk 0:00:04.5]}
73... Kb2 {[%clk 0:00:05.7]} 74. Re2+ {[%clk 0:00:04.7]} 74... Kb3 {[%clk
0:00:05.8]} 75. Rxa2 {[%clk 0:00:05.6]} 75... Kxa2 {[%clk 0:00:06.4]} 76. h6
{[%clk 0:00:06.5]} 76... Kb3 {[%clk 0:00:07.3]} 77. Kh8 {[%clk 0:00:06.4]} 77...
Kc4 {[%clk 0:00:08.2]} 78. h7 {[%clk 0:00:07.3]} 78... Rf3 {[%clk 0:00:08.7]}
79. Kg7 {[%clk 0:00:05.3]} 79... Rg3+ {[%clk 0:00:09]} 80. Kh8 {[%clk
0:00:05.5]} 80... Rh3 {[%clk 0:00:08]} 81. Kg7 {[%clk 0:00:05.8]} 81... Kd5
{[%clk 0:00:08.6]} 82. h8=Q {[%clk 0:00:05.6]} 82... Rxh8 {[%clk 0:00:09.5]} 83.
Kxh8 {[%clk 0:00:06]} 1/2-1/2

[Event "*** Titled Tuesday Blitz"]
[Site "Chess.com"]
[Date "2021.04.06"]
[Round "6"]
[White "Yurovskykh_Oleksandr"]
[Black "ShapkinAnatoliy"]
[Result "1-0"]
[WhiteElo "2535"]
[BlackElo "2654"]
[TimeControl "180+1"]
[EndTime "11:10:12 PDT"]
[Termination "Yurovskykh_Oleksandr won by resignation"]

1. d4 {[%clk 0:03:00.9]} 1... Nf6 {[%clk 0:02:59.6]} 2. Nf3 {[%clk 0:03:00.9]}
2... g6 {[%clk 0:02:58.2]} 3. Bg5 {[%clk 0:02:59.9]} 3... Bg7 {[%clk 0:02:58.2]}
4. Nbd2 {[%clk 0:03:00.2]} 4... d5 {[%clk 0:02:58.2]} 5. e3 {[%clk 0:03:00]}
5... O-O {[%clk 0:02:58.8]} 6. Be2 {[%clk 0:03:00.1]} 6... Nbd7 {[%clk
0:02:59.4]} 7. b4 {[%clk 0:02:54.4]} 7... a5 {[%clk 0:02:57.4]} 8. b5 {[%clk
0:02:54.1]} 8... c5 {[%clk 0:02:57.2]} 9. bxc6 {[%clk 0:02:53.7]} 9... bxc6
{[%clk 0:02:58.1]} 10. O-O {[%clk 0:02:52.8]} 10... c5 {[%clk 0:02:58.2]} 11. c3
{[%clk 0:02:53.1]} 11... Ba6 {[%clk 0:02:57]} 12. Rb1 {[%clk 0:02:46.9]} 12...
Qc8 {[%clk 0:02:54.1]} 13. h3 {[%clk 0:02:39.2]} 13... Qc6 {[%clk 0:02:43.5]}
14. Bf4 {[%clk 0:02:27.5]} 14... Rfc8 {[%clk 0:02:32]} 15. Ne5 {[%clk
0:02:23.3]} 15... Nxe5 {[%clk 0:02:27.7]} 16. Bxe5 {[%clk 0:02:24.2]} 16... Ne8
{[%clk 0:02:15.8]} 17. Bxg7 {[%clk 0:02:21.5]} 17... Kxg7 {[%clk 0:02:16.7]} 18.
Nf3 {[%clk 0:02:20.6]} 18... cxd4 {[%clk 0:02:00.6]} 19. cxd4 {[%clk 0:02:12]}
19... Qc2 {[%clk 0:01:56.5]} 20. Bxa6 {[%clk 0:01:51.4]} 20... Rxa6 {[%clk
0:01:57.4]} 21. Rc1 {[%clk 0:01:46.1]} 21... Qxd1 {[%clk 0:01:54.1]} 22. Rfxd1
{[%clk 0:01:47]} 22... Rac6 {[%clk 0:01:53.3]} 23. Rxc6 {[%clk 0:01:46.6]} 23...
Rxc6 {[%clk 0:01:54.2]} 24. Rb1 {[%clk 0:01:33.7]} 24... Nd6 {[%clk 0:01:53.3]}
25. Rb2 {[%clk 0:01:23.1]} 25... Rc1+ {[%clk 0:01:29.2]} 26. Kh2 {[%clk
0:01:21.5]} 26... a4 {[%clk 0:01:14.1]} 27. Ne5 {[%clk 0:01:18.4]} 27... Nc4
{[%clk 0:01:04.8]} 28. Nxc4 {[%clk 0:01:15.1]} 28... Rxc4 {[%clk 0:01:05.7]} 29.
Rb5 {[%clk 0:01:15.2]} 29... e6 {[%clk 0:01:04.4]} 30. Ra5 {[%clk 0:01:15.5]}
30... Rc2 {[%clk 0:01:05]} 31. Rxa4 {[%clk 0:01:13.4]} 31... Rxf2 {[%clk
0:01:05.5]} 32. Kg3 {[%clk 0:01:14]} 32... Rb2 {[%clk 0:01:04.2]} 33. Kf3 {[%clk
0:01:13.1]} 33... h5 {[%clk 0:01:04.7]} 34. h4 {[%clk 0:01:13.2]} 34... Kf6
{[%clk 0:00:55.6]} 35. Ra7 {[%clk 0:01:13.2]} 35... Rc2 {[%clk 0:00:40.7]} 36.
g3 {[%clk 0:01:04.2]} 36... Rb2 {[%clk 0:00:37.1]} 37. a4 {[%clk 0:00:57.5]}
37... Ra2 {[%clk 0:00:37.1]} 38. a5 {[%clk 0:00:57.9]} 38... Rb2 {[%clk
0:00:37.3]} 39. a6 {[%clk 0:00:58.3]} 39... Ra2 {[%clk 0:00:37.9]} 40. g4 {[%clk
0:00:56.6]} 40... hxg4+ {[%clk 0:00:31.4]} 41. Kxg4 {[%clk 0:00:57.5]} 41...
Rg2+ {[%clk 0:00:28.4]} 42. Kf3 {[%clk 0:00:57.3]} 42... Ra2 {[%clk 0:00:29.3]}
43. Kg3 {[%clk 0:00:54.7]} 43... Kg7 {[%clk 0:00:18.2]} 44. Kg4 {[%clk 0:00:54]}
44... Kf6 {[%clk 0:00:17.7]} 45. Kf4 {[%clk 0:00:47.3]} 45... Rf2+ {[%clk
0:00:16.1]} 46. Kg3 {[%clk 0:00:47.6]} 46... Ra2 {[%clk 0:00:17]} 47. Kf3 {[%clk
0:00:48.2]} 47... Kg7 {[%clk 0:00:16.6]} 48. Ra8 {[%clk 0:00:48.3]} 48... Kf6
{[%clk 0:00:13.5]} 49. a7 {[%clk 0:00:47.3]} 49... Kf5 {[%clk 0:00:14]} 50. Kg3
{[%clk 0:00:44.7]} 50... f6 {[%clk 0:00:14.1]} 51. Kf3 {[%clk 0:00:44.6]} 51...
Ra3 {[%clk 0:00:09.8]} 52. Kf2 {[%clk 0:00:40.6]} 52... Ke4 {[%clk 0:00:09.7]}
53. Re8 {[%clk 0:00:40.2]} 53... Ra2+ {[%clk 0:00:10.3]} 54. Kg3 {[%clk
0:00:40.1]} 54... Rxa7 {[%clk 0:00:10.4]} 55. Rxe6+ {[%clk 0:00:39.5]} 55... Kf5
{[%clk 0:00:09.5]} 56. Re8 {[%clk 0:00:39.5]} 56... Ra6 {[%clk 0:00:07.5]} 57.
Kf3 {[%clk 0:00:39.1]} 57... Re6 {[%clk 0:00:06.8]} 58. Rd8 {[%clk 0:00:38.8]}
58... g5 {[%clk 0:00:06.8]} 59. Rxd5+ {[%clk 0:00:37.3]} 59... Kg6 {[%clk
0:00:07]} 60. hxg5 {[%clk 0:00:37.7]} 60... fxg5 {[%clk 0:00:07.9]} 61. e4
{[%clk 0:00:38]} 61... Rf6+ {[%clk 0:00:08.1]} 62. Ke3 {[%clk 0:00:36.2]} 62...
Rf1 {[%clk 0:00:07.9]} 63. e5 {[%clk 0:00:33.6]} 63... g4 {[%clk 0:00:08.2]} 64.
Rd8 {[%clk 0:00:33.6]} 64... Kg7 {[%clk 0:00:08.3]} 65. Ke2 {[%clk 0:00:28.4]}
65... Rf4 {[%clk 0:00:08]} 66. Ke3 {[%clk 0:00:27.8]} 66... Rf1 {[%clk
0:00:08.3]} 67. Ra8 {[%clk 0:00:27]} 67... g3 {[%clk 0:00:07.8]} 68. Ra2 {[%clk
0:00:27.2]} 68... Kf7 {[%clk 0:00:06.4]} 69. Rg2 {[%clk 0:00:26.3]} 69... Ke6
{[%clk 0:00:06.7]} 70. Rxg3 {[%clk 0:00:25.1]} 70... Kd5 {[%clk 0:00:07.2]} 71.
Rg4 {[%clk 0:00:25.1]} 71... Re1+ {[%clk 0:00:07.5]} 72. Kf3 {[%clk 0:00:25.3]}
72... Rf1+ {[%clk 0:00:08]} 73. Kg3 {[%clk 0:00:25.3]} 73... Rf8 {[%clk
0:00:08.5]} 74. Rf4 {[%clk 0:00:24.9]} 74... Rh8 {[%clk 0:00:09]} 75. Kg4 {[%clk
0:00:24.6]} 75... Rg8+ {[%clk 0:00:08.3]} 76. Kh5 {[%clk 0:00:24.9]} 76... Rg1
{[%clk 0:00:08]} 77. Kh4 {[%clk 0:00:25.1]} 77... Rg8 {[%clk 0:00:07.8]} 78. Rg4
{[%clk 0:00:25.2]} 78... Rf8 {[%clk 0:00:06.6]} 79. Kg5 {[%clk 0:00:22.4]} 79...
Rf1 {[%clk 0:00:05.8]} 80. Kg6 {[%clk 0:00:22.1]} 80... Rf8 {[%clk 0:00:05.8]}
81. Kg7 {[%clk 0:00:22.2]} 81... Rf1 {[%clk 0:00:05.9]} 82. Rg6 {[%clk
0:00:20.6]} 82... Kxd4 {[%clk 0:00:05.4]} 83. e6 {[%clk 0:00:20.9]} 83... Kd5
{[%clk 0:00:05.4]} 84. e7 {[%clk 0:00:21.1]} 84... Re1 {[%clk 0:00:04]} 85. Kf7
{[%clk 0:00:21.4]} 85... Rf1+ {[%clk 0:00:03.7]} 86. Rf6 {[%clk 0:00:21.9]} 1-0